bitfinex-derivatives/quotes_ETHF0:USTF0_20251028
["timestamp","ask_amount","ask_price","bid_price","bid_amount"]
[1761691025158,0.00207581,3988.7,3988.6,5.04720621]
[1761691025348,0.00207581,3988.7,3988.6,7.80375621]
[1761691025847,0.00207581,3988.7,3988.6,8.25500621]
[1761691027955,0.00207581,3988.7,3988.6,4.44000621]
[1761691028159,0.34867581,3988.7,3988.6,8.25500621]
[1761691029357,1.23581581,3988.7,3988.6,4.26705621]
[1761691029561,0.34867581,3988.7,3988.6,4.59615621]
[1761691029859,0.45331581,3988.7,3988.6,4.59615621]
[1761691030750,0.45331581,3988.7,3988.6,8.25520621]
[1761691030751,0.00207581,3988.7,3988.6,8.25520621]
[1761691037462,1.37765,3989.5,3989.4,0.4488]
[1761691037662,1.37765,3989.5,3989.4,4.2638]
[1761691038369,1.38035103,3989.5,3989.4,4.2638]
[1761691040559,1.24369,3989.1,3989.0,0.7758]
[1761691040960,1.24369,3989.1,3988.7,0.327]
[1761691041164,1.24373,3988.8,3988.7,0.7758]
[1761691041373,1.24373,3988.8,3988.7,4.2628]
[1761691042864,1.24373,3988.8,3988.7,4.5898]
[1761691043061,1.01203,3988.8,3988.7,4.5898]
[1761691045270,1.24373,3988.8,3988.7,4.5898]
[1761691045469,1.24373,3988.8,3988.7,0.4488]
[1761691045670,1.24374,3988.7,3988.6,0.00175621]
[1761691045869,1.24374,3988.7,3988.6,4.59155621]
[1761691045870,0.78854,3988.7,3988.6,4.59155621]
[1761691047470,1.01204,3988.7,3988.6,4.59155621]
[1761691050878,0.45124,3988.7,3988.6,4.59155621]
[1761691051478,0.78854,3988.7,3988.6,4.59155621]
[1761691052974,1.01204,3988.7,3988.6,4.59155621]
[1761691054576,1.24374,3988.7,3988.6,4.26455621]
[1761691055278,1.01204,3988.7,3988.6,4.59155621]
[1761691056272,1.24374,3988.7,3988.6,4.59155621]
[1761691056774,1.24374,3988.7,3988.6,4.26455621]
[1761691057675,1.24374,3988.7,3988.6,4.59155621]
[1761691058877,1.24374,3988.7,3988.6,4.26455621]
[1761691060581,1.24374,3988.7,3988.6,3.81475621]
[1761691060778,1.24374,3988.7,3988.6,4.03895621]
[1761691064083,1.24374,3988.7,3988.6,4.58305621]
[1761691064281,0.78854,3988.7,3988.6,4.58305621]
[1761691064480,0.45124,3988.7,3988.6,4.58305621]
[1761691064780,1.03019,3989.1,3989.0,0.7683]
[1761691064981,1.03019,3989.1,3989.0,4.5813]
[1761691065187,1.24969,3989.1,3989.0,4.5813]
[1761691067282,0.45119,3989.1,3989.0,4.5813]
[1761691067480,3.65898,3989.2,3989.1,0.7683]
[1761691067980,4.00358,3989.2,3989.1,0.7683]
[1761691071486,4.23798,3989.2,3989.1,0.7683]
[1761691075589,4.45748,3989.2,3989.1,0.4411]
[1761691080188,1.24969,3989.1,3989.0,3.813]
[1761691080594,1.24974,3988.7,3988.6,0.22595621]
[1761691080795,1.24974,3988.7,3988.6,4.58105621]
[1761691081784,1.03024,3988.7,3988.6,4.58105621]
[1761691081987,1.03024,3988.7,3988.6,0.77005621]
[1761691082388,1.03024,3988.7,3988.6,4.58105621]
[1761691087397,1.03024,3988.7,3988.6,4.58005621]
[1761691088093,0.579,3988.7,3988.6,5.03130621]
[1761691088290,0.579,3988.7,3988.6,4.58005621]
[1761691088998,0.3446,3988.7,3988.6,4.58005621]
[1761691089491,1.01144,3988.7,3988.6,4.58005621]
[1761691090500,0.79864,3988.7,3988.6,4.58005621]
[1761691092093,1.03164,3988.7,3988.6,4.58005621]
[1761691093706,1.25664,3988.7,3988.6,0.00175621]
[1761691093911,1.25664,3988.7,3988.6,3.81175621]
[1761691096014,1.25664,3988.7,3988.6,0.00175621]
[1761691096212,1.25664,3988.7,3988.6,3.81175621]
[1761691101412,1.25664,3988.7,3988.6,4.04115621]
[1761691103219,1.03164,3988.7,3988.6,4.60025621]
[1761691103423,0.79864,3988.7,3988.6,4.60025621]
[1761691108522,0.45124,3988.7,3988.6,4.60025621]
[1761691110320,3.2078,3989.2,3988.6,4.60025621]
[1761691110321,0.80125103,3989.5,3989.4,0.232]
[1761691110521,0.80125103,3989.5,3989.4,4.2704]
[1761691110735,1.03425103,3989.5,3989.4,4.2704]
[1761691111028,1.16275103,3989.5,3989.4,4.5975]
[1761691111425,1.03425103,3989.5,3989.4,4.5975]
[1761691111625,0.80125103,3989.5,3989.4,4.5975]
[1761691114830,1.16275103,3989.5,3989.4,0.7885]
[1761691115028,1.38775103,3989.5,3989.4,4.5965]
[1761691117035,1.38775103,3989.5,3989.4,0.7885]
[1761691117331,1.03425103,3989.5,3989.4,0.7885]
[1761691117634,1.03425103,3989.5,3989.4,4.5965]
[1761691118031,1.16275103,3989.5,3989.4,4.5965]
[1761691118533,0.45385103,3989.5,3989.4,4.5965]
[1761691119328,0.80125103,3989.5,3989.4,4.5965]
[1761691120431,0.00270103,3989.5,3989.4,4.5965]
[1761691123833,0.00270103,3989.5,3989.4,5.04766]
[1761691126731,0.68279,3989.1,3989.0,0.3271]
[1761691126936,0.68279,3989.1,3988.6,1.79320482]
[1761691126937,1.22414,3988.7,3988.6,0.77655621]
[1761691127128,1.22414,3988.7,3988.6,4.25545621]
[1761691127328,1.22414,3988.7,3988.6,4.58255621]
[1761691130340,1.01044,3988.7,3988.6,4.58255621]
[1761691134139,1.22414,3988.7,3988.6,4.58255621]
[1761691135840,1.01044,3988.7,3988.6,4.58255621]
[1761691136046,1.22414,3988.7,3988.6,0.44945621]
[1761691136346,1.22414,3988.7,3988.6,4.25545621]
[1761691137050,1.22414,3988.7,3988.6,0.44945621]
[1761691137352,1.22414,3988.7,3988.6,4.25545621]
[1761691137743,1.22414,3988.7,3988.6,4.58255621]
[1761691137938,0.3276,3988.9,3988.8,0.2349]
[1761691138247,0.77883,3988.8,3988.7,0.4477]
[1761691138447,0.3276,3988.8,3988.7,4.2537]
[1761691138743,1.01043,3988.9,3988.8,0.7748]
[1761691139247,1.22413,3988.9,3988.8,0.7748]
[1761691140649,1.22413,3988.9,3988.8,0.4477]
[1761691140946,1.22414,3988.7,3988.6,0.00175621]
[1761691141249,1.22423,3987.9,3987.8,3.83107648]
[1761691141842,9.22423,3987.9,3987.8,3.83107648]
[1761691142038,1.22423,3987.9,3987.8,0.0279063]
[1761691142243,1.22423,3987.9,3987.8,3.8339063]
[1761691144053,1.22423,3987.9,3987.8,4.0467063]
[1761691147256,0.77893,3987.9,3987.8,4.6087063]
[1761691147457,1.01053,3987.9,3987.8,4.6087063]
[1761691147652,1.22423,3987.9,3987.8,4.2816063]
[1761691148558,1.22423,3987.9,3987.8,4.6087063]
[1761691149560,1.22423,3987.9,3987.8,4.2816063]
[1761691150362,1.22423,3987.9,3987.8,4.6089063]
[1761691150856,0.3459,3988.1,3988.0,0.2352]
[1761691151063,0.45131,3988.1,3988.0,4.5931]
[1761691151359,3.2078,3988.2,3988.1,0.7871]
[1761691151864,0.79718,3988.4,3988.3,0.7871]
[1761691152063,0.79718,3988.4,3988.3,4.5931]
[1761691155162,3.5537,3988.6,3988.5,0.4598]
[1761691155469,4.24015,3988.6,3988.5,0.7871]
[1761691155858,4.46555,3988.6,3988.5,0.7871]
[1761691156568,4.46555,3988.6,3988.5,0.4598]
[1761691160470,4.24015,3988.6,3988.5,0.7871]
[1761691160661,4.00495,3988.6,3988.5,0.7871]
[1761691160862,1.03235,3988.6,3988.5,0.7871]
[1761691161063,1.25775,3988.6,3988.5,0.4598]
[1761691161970,1.03235,3988.6,3988.5,0.7871]
[1761691162165,0.79715,3988.6,3988.5,0.7871]
[1761691162563,1.03235,3988.6,3988.5,0.7871]
[1761691164668,1.03235,3988.6,3988.3,3.806]
[1761691164669,0.6865,3988.1,3988.0,5.55114861]
[1761691164870,1.0324,3988.1,3988.0,4.5911]
[1761691168974,1.2578,3988.1,3988.0,0.7871]
[1761691169175,1.2578,3988.1,3988.0,4.0286]
[1761691169970,1.25783,3987.9,3987.8,0.2525063]
[1761691170269,1.25783,3987.9,3987.8,3.8319063]
[1761691173176,4.46563,3987.9,3987.8,3.8319063]
[1761691175077,4.46563,3987.9,3987.8,4.0565063]
[1761691183788,4.46563,3987.9,3987.8,4.6009063]
[1761691188194,4.46563,3987.9,3987.8,4.2805063]
[1761691189693,4.46563,3987.9,3987.8,4.0565063]
[1761691189893,4.46563,3987.9,3987.8,4.0555063]
[1761691190090,4.46563,3987.9,3987.8,3.8309063]
[1761691190892,4.46563,3987.9,3987.8,4.0517063]
[1761691191993,4.46563,3987.9,3987.8,3.8309063]
[1761691192392,4.46563,3987.9,3987.8,0.0279063]
[1761691193087,4.46563,3987.9,3987.8,0.2487063]
[1761691194194,5.0674116,3987.9,3987.8,0.2487063]
[1761691197191,5.0674116,3987.9,3987.8,0.0279063]
[1761691197586,5.0674116,3987.9,3986.9,1.79144861]
[1761691197587,0.45143,3987.0,3986.9,1.79144861]
[1761691197792,1.2156,3986.4,3985.9,0.3204]
[1761691197984,1.2156,3986.4,3986.2,3.803]
[1761691198698,1.2181383,3986.4,3986.3,0.02252401]
[1761691198896,1.2181383,3986.4,3986.3,4.01e-06]
[1761691200495,0.45158,3985.7,3985.6,0.3204]
[1761691200694,0.45158,3985.7,3984.8,5.43933225]
[1761691200695,0.78167,3984.9,3984.8,1.79144861]
[1761691200893,0.45167,3984.9,3984.8,4.2478]
[1761691201090,0.45155,3986.0,3985.7,0.224]
[1761691201297,3.2078,3986.3,3986.2,0.7652]
[1761691201298,3.88051,3986.3,3986.2,0.7652]
[1761691201597,4.42341,3986.3,3986.2,4.25022149]
[1761691201800,4.42341,3986.3,3986.2,4.57062149]
[1761691204399,0.78151,3986.3,3986.2,4.57062149]
[1761691204907,0.5512,3986.3,3986.2,4.57062149]
[1761691205694,0.7641,3986.3,3986.2,4.25022149]
[1761691207403,1.21561,3986.3,3986.2,4.25022149]
[1761691207899,4.42341,3986.3,3986.2,4.25022149]
[1761691210102,4.42341,3986.3,3986.2,0.00242149]
[1761691210303,4.42341,3986.3,3986.2,3.80542149]
[1761691210505,1.00271,3986.3,3986.2,4.58242149]
[1761691212299,0.3244,3987.4,3987.3,0.4493]
[1761691212500,0.77578,3987.4,3987.3,4.5775]
[1761691212799,0.99288,3987.4,3987.3,4.5775]
[1761691213399,0.99498138,3987.4,3987.3,4.5775]
[1761691214804,0.77788138,3987.4,3987.3,4.5775]
[1761691215104,0.00210138,3987.4,3987.3,4.5775]
[1761691216304,0.45348138,3987.4,3987.3,4.5775]
[1761691216700,0.77788138,3987.4,3987.3,4.5775]
[1761691218300,0.54360138,3987.4,3987.3,4.5775]
[1761691218609,0.00210138,3987.4,3987.3,4.5775]
[1761691220014,0.77788138,3987.4,3987.3,4.5775]
[1761691220697,1.21168138,3987.4,3987.3,0.4493]
[1761691220902,1.21168138,3987.4,3987.3,3.802]
[1761691221412,1.21168138,3987.4,3987.3,4.5765]
[1761691223811,4.41948138,3987.4,3987.3,4.5765]
[1761691224013,4.41948138,3987.4,3987.3,4.2513]
[1761691224603,4.41948138,3987.4,3987.3,3.802]
[1761691225005,4.41948138,3987.4,3987.3,4.0314]
[1761691225313,4.41948138,3987.4,3987.3,4.5765]
[1761691225509,4.20278138,3987.4,3987.3,4.5765]
[1761691225712,0.00210138,3987.4,3987.3,4.5765]
[1761691226508,0.45348138,3987.4,3987.3,4.5765]
[1761691227117,0.00210138,3987.4,3987.3,5.0279]
[1761691227716,0.00210138,3987.4,3987.3,4.5765]
[1761691228623,0.45348138,3987.4,3987.3,4.5765]
[1761691230522,0.00210138,3987.4,3987.3,4.5765]
[1761691230723,0.00210138,3987.4,3987.3,5.0279]
[1761691231024,0.45134,3987.9,3987.8,0.7724]
[1761691231216,0.45134,3987.9,3987.8,4.5744]
[1761691232021,0.45424841,3987.9,3987.8,4.5744]
[1761691234827,0.00290841,3987.9,3987.8,4.5744]
[1761691235026,0.3244,3988.3,3987.8,4.5744]
[1761691235027,0.45128,3988.3,3988.0,0.45131]
[1761691235220,3.65906,3988.5,3988.4,0.7695]
[1761691235416,3.65906,3988.5,3988.4,4.5705]
[1761691235624,0.45126,3988.5,3988.4,4.5705]
[1761691235823,0.77564,3988.7,3988.6,0.7695]
[1761691236116,0.77754299,3988.7,3988.6,4.5705]
[1761691237329,0.45314299,3988.7,3988.6,4.5705]
[1761691237728,0.00190299,3988.7,3988.6,4.5705]
[1761691240429,0.00190299,3988.7,3988.6,5.02175]
[1761691245624,0.1377,3989.5,3988.7,3.45946]
[1761691245828,0.3472,3989.9,3989.4,3.2078]
[1761691246024,0.3472,3989.9,3989.8,3.2078]
[1761691246230,0.5656,3989.9,3989.8,7.0078]
[1761691246428,0.5656,3989.9,3989.8,3.2078]
[1761691246626,0.56741964,3989.9,3989.8,7.01042926]
[1761691246831,1.23691964,3989.9,3989.8,0.00262926]
[1761691247328,1.23691964,3989.9,3989.8,3.80262926]
[1761691249127,1.23691964,3989.9,3989.8,3.80162926]
[1761691253425,1.23691964,3989.9,3989.8,0.00262926]
[1761691257641,1.23528,3988.3,3988.2,3.2078]
[1761691257846,1.23528,3988.3,3988.2,7.0068]
[1761691258837,1.23528,3988.3,3988.2,7.0096529]
[1761691260140,1.01688,3988.3,3988.2,7.0096529]
[1761691260339,1.01688,3988.3,3988.2,3.2106529]
[1761691260538,1.23528,3988.3,3988.2,7.0096529]
[1761691263747,1.23528,3988.3,3988.2,3.2106529]
[1761691263944,1.23528,3988.3,3988.2,7.0096529]
[1761691265043,1.23528,3988.3,3988.2,3.2106529]
[1761691265247,1.23528,3988.3,3988.2,7.0096529]
[1761691266144,1.23528,3988.3,3988.2,0.0028529]
[1761691266341,1.37307,3987.5,3987.4,3.2078]
[1761691266537,1.37307,3987.5,3987.4,7.0068]
[1761691267233,1.37307,3987.5,3987.4,3.21088749]
[1761691267442,1.37307,3987.5,3987.4,0.00308749]
[1761691267945,1.37307,3987.5,3987.4,3.80208749]
[1761691268341,1.01706,3986.7,3986.6,3.2078]
[1761691268540,0.7836,3986.4,3986.3,0.01930302]
[1761691268741,0.7836,3986.4,3986.3,3.81830302]
[1761691268943,1.0098,3986.4,3986.3,0.01930302]
[1761691269141,1.0098,3986.4,3986.3,3.81830302]
[1761691269346,1.01288871,3986.4,3986.3,3.82094198]
[1761691269841,1.23388871,3986.4,3986.3,3.82094198]
[1761691272550,1.23388871,3986.4,3986.3,0.02194198]
[1761691272848,1.23388871,3986.4,3986.3,3.82194198]
[1761691276161,0.78668871,3986.4,3986.3,3.82194198]
[1761691276850,0.1377,3987.0,3986.3,3.82194198]
[1761691277042,0.1377,3987.0,3986.8,3.2078]
[1761691277247,0.1377,3987.0,3986.9,3.8]
[1761691277442,0.58913,3987.0,3986.9,3.8]
[1761691278045,0.59158544,3987.0,3986.9,3.8]
[1761691278250,0.82598544,3987.0,3986.9,3.8]
[1761691278651,0.37455544,3987.0,3986.9,3.8]
[1761691278852,0.14015544,3987.0,3986.9,3.8]
[1761691279045,0.47505544,3987.0,3986.9,3.8]
[1761691282956,0.00245544,3987.0,3986.9,4.25144]
[1761691283151,0.00245544,3987.0,3986.9,4.32664]
[1761691283450,0.1377,3987.5,3987.3,0.45139]
[1761691283664,0.45133,3987.9,3987.4,7.0078]
[1761691283851,0.58902,3988.0,3987.6,0.45136]
[1761691284449,0.5912911,3988.0,3987.5,3.8]
[1761691284650,0.5912911,3988.0,3987.6,0.45136]
[1761691285558,0.3349,3987.9,3987.6,0.45136]
[1761691286153,0.3349,3987.9,3987.7,0.45134]
[1761691286353,0.3349,3987.9,3987.8,3.8]
[1761691286556,0.3349,3987.9,3987.8,7.0078]
[1761691287251,0.3349,3987.9,3987.8,7.45914]
[1761691287952,0.0022711,3988.0,3987.9,0.45133]
[1761691288666,0.3349,3988.4,3988.3,0.45128]
[1761691288955,0.1297,3989.5,3988.3,0.45128]
[1761691288956,0.1297,3990.0,3989.4,0.3604]
[1761691289158,1.03249,3990.0,3989.9,0.1802]
[1761691289360,0.45109,3990.0,3989.9,4.3406]
[1761691289658,3.65887,3990.2,3990.1,0.3604]
[1761691289964,0.68752981,3990.2,3990.1,0.3604]
[1761691290859,1.02242981,3990.2,3990.1,0.3604]
[1761691291560,1.23972981,3990.2,3990.1,0.3604]
[1761691292863,0.90279,3990.0,3989.9,0.18218617]
[1761691293162,1.36739,3990.0,3989.9,0.00198617]
[1761691293666,1.36739,3990.0,3989.9,3.80098617]
[1761691294866,1.36739,3990.0,3988.9,3.2078]
[1761691294867,0.4517,3989.4,3988.9,3.2078]
[1761691295063,0.5693,3988.6,3988.5,3.5682]
[1761691295264,0.3349,3988.6,3988.5,7.5474]
[1761691295460,1.02055,3988.6,3988.5,0.3604]
[1761691295670,1.23785,3988.6,3988.5,4.1594]
[1761691295969,1.23785,3988.6,3988.5,4.16199472]
[1761691296568,0.7866,3988.6,3988.5,4.16199472]
[1761691296971,0.3349,3988.6,3988.5,4.34219472]
[1761691297671,1.02055,3988.6,3988.5,4.34219472]
[1761691298368,1.02055,3988.6,3988.5,4.16199472]
[1761691299672,0.5693,3988.6,3988.5,4.34199472]
[1761691299972,1.02055,3988.6,3988.5,4.34199472]
[1761691303273,0.78615,3988.6,3988.5,4.34199472]
[1761691308472,0.3349,3988.6,3988.5,4.34199472]
[1761691310778,0.78615,3988.6,3988.5,4.34199472]
[1761691310975,1.01325,3988.6,3988.5,4.34199472]
[1761691317784,0.562,3988.6,3988.5,4.34199472]
[1761691318183,1.01325,3988.6,3988.5,4.34199472]
[1761691318685,0.80597,3989.3,3989.0,0.18]
[1761691318980,1.25598,3989.2,3989.1,3.978]
[1761691319286,1.03314,3988.7,3988.6,0.36]
[1761691319586,1.03314,3988.7,3988.6,4.158]
[1761691319974,1.03314,3988.7,3988.6,0.36]
[1761691320181,1.25604,3988.7,3988.6,4.158]
[1761691320581,1.25604,3988.7,3988.6,3.978]
[1761691321280,1.25604,3988.7,3988.6,4.158]
[1761691321583,1.25604,3988.7,3988.5,3.21039472]
[1761691321584,1.25605,3988.6,3988.5,0.00259472]
[1761691321771,1.25605,3988.6,3988.5,3.80059472]
[1761691326990,1.03315,3988.6,3988.5,4.34059472]
[1761691328579,1.25605,3988.6,3988.5,3.80059472]
[1761691330094,1.25605,3988.6,3988.5,3.98069472]
[1761691331595,1.25605,3988.6,3988.5,4.16079472]
[1761691332292,1.25605,3988.6,3988.5,3.80059472]
[1761691334498,1.25605,3988.6,3988.5,3.98069472]
[1761691335398,0.3548,3988.6,3988.5,4.34089472]
[1761691335595,0.8162,3989.0,3988.9,0.5403]
[1761691335799,3.13191844,3992.1,3989.5,0.0649]
[1761691335991,0.1336,3994.0,3992.0,0.3253]
[1761691336201,3.3414,3994.5,3991.4,14.48103]
[1761691336202,0.1336,3994.5,3993.8,0.67378526]
[1761691336492,0.1336,3994.5,3994.0,1.8009908]
[1761691336692,0.58414,3995.0,3994.2,1.8009908]
[1761691336890,0.36718622,3995.0,3994.7,1.3404079]
[1761691337088,0.36718622,3995.0,3994.3,5.6839908]
[1761691337089,0.1336,3994.5,3994.3,1.8009908]
[1761691337288,0.4479,3994.5,3994.4,3.90352302]
[1761691337488,0.4479,3994.5,3994.4,0.69572302]
[1761691337690,0.5983,3994.0,3993.9,2.01398416]
[1761691337888,0.5983,3994.0,3993.9,5.90198416]
[1761691338083,0.9489,3994.0,3993.9,5.90198416]
[1761691338297,0.9489,3994.0,3993.9,6.56853377]
[1761691338697,1.39954,3994.0,3993.9,6.57033812]
[1761691339090,0.9489,3994.0,3993.9,6.57033812]
[1761691339397,0.9489,3994.0,3993.9,5.90378851]
[1761691341494,0.7328,3994.0,3993.9,5.90378851]
[1761691341693,0.9489,3994.0,3993.9,5.90378851]
[1761691343887,0.5824,3994.0,3993.9,5.90378851]
[1761691344095,0.3506,3994.0,3993.9,5.90378851]
[1761691344900,0.501,3994.0,3993.9,5.90378851]
[1761691345599,0.3506,3994.0,3993.9,5.90378851]
[1761691345795,0.7328,3994.0,3993.9,5.90378851]
[1761691346295,0.5824,3994.0,3993.9,5.90378851]
[1761691346493,0.7328,3994.0,3993.9,5.90378851]
[1761691346694,0.9489,3994.0,3993.9,5.90378851]
[1761691349702,0.9489,3994.0,3993.9,6.56310869]
[1761691350897,0.9489,3994.0,3993.9,2.67510869]
[1761691351103,0.9489,3994.0,3993.9,6.55210869]
[1761691351599,1.39954,3994.0,3993.9,6.55210869]
[1761691352601,1.39954,3994.0,3993.9,0.00180435]
[1761691356306,1.39954,3994.0,3993.9,0.65272017]
[1761691356504,1.39954,3994.0,3993.9,0.00180435]
[1761691356704,1.39954,3994.0,3993.9,3.85636928]
[1761691358198,1.39954,3994.0,3993.9,7.72836928]
[1761691359707,1.39954,3994.0,3993.9,8.35636928]
[1761691361095,1.39954,3994.0,3993.9,9.6793388]
[1761691361299,1.39954,3994.0,3993.9,8.35636928]
[1761691361809,1.39954,3994.0,3993.9,8.96446928]
[1761691362109,1.39954,3994.0,3993.9,8.96246928]
[1761691363006,1.39954,3994.0,3993.9,4.48436928]
[1761691363207,1.39954,3994.0,3993.9,4.51556928]
[1761691363405,1.39954,3994.0,3993.9,6.29303379]
[1761691363599,1.39954,3994.0,3993.9,6.92103379]
[1761691364406,1.2506,3994.0,3993.9,6.07830435]
[1761691364610,1.70124,3994.0,3993.9,0.00180435]
[1761691364804,1.70124,3994.0,3993.9,3.86880435]
[1761691365001,1.70124,3994.0,3993.9,5.20582764]
[1761691365208,1.70124,3994.0,3993.9,3.86880435]
[1761691365401,1.70124,3994.0,3993.9,4.49680435]
[1761691366295,2.59654,3994.0,3993.9,4.49680435]
[1761691367001,2.59654,3994.0,3993.9,2.42271624]
[1761691369513,1.34594,3994.0,3993.9,4.00421624]
[1761691369700,2.59654,3994.0,3993.9,3.03081624]
[1761691370201,2.59654,3994.0,3993.9,5.09990435]
[1761691370401,2.59654,3994.0,3993.9,6.89281624]
[1761691370708,2.59654,3994.0,3993.9,7.86621624]
[1761691371203,2.59654,3994.0,3993.9,3.02957679]
[1761691371512,2.59654,3994.0,3993.9,4.60588821]
[1761691372514,0.45064,3994.0,3993.9,10.02530691]
[1761691372814,0.45064,3994.0,3993.9,8.68164872]
[1761691373109,0.45064,3994.0,3993.9,10.47239837]
[1761691374812,0.45063,3994.1,3994.0,2.3386]
[1761691376017,0.45231622,3995.0,3994.9,2.2095]
[1761691376312,1.34574,3995.8,3995.7,2.2095]
[1761691376514,1.34574,3995.8,3995.7,9.2783]
[1761691376901,0.45044,3995.8,3995.7,9.2783]
[1761691377105,0.45044,3995.9,3995.8,0.9734]
[1761691377304,0.45345141,3995.9,3995.8,3.54923727]
[1761691377509,0.45345141,3995.9,3995.8,2.2095]
[1761691377817,0.45345141,3995.9,3995.0,2.36063225]
[1761691377818,1.12909141,3995.9,3995.3,4.54759977]
[1761691378015,1.70112,3995.1,3995.0,0.628]
[1761691378217,1.70112,3995.1,3995.0,5.0991]
[1761691378420,0.45052,3995.1,3995.0,6.2016]
[1761691378907,2.00102,3995.1,3995.0,6.2016]
[1761691379111,2.00102,3995.1,3995.0,6.0725]
[1761691382523,1.10574,3994.9,3994.8,3.2078]
[1761691382712,1.10574,3994.9,3994.7,1.33979977]
[1761691382713,1.34585,3994.8,3994.7,0.628]
[1761691382908,2.59645,3994.8,3994.7,4.488]
[1761691383110,0.45047,3995.5,3995.4,2.2095]
[1761691383417,0.8953,3996.8,3996.7,2.2095]
[1761691383625,1.1055,3997.0,3996.9,2.2095]
[1761691384121,2.733,3997.0,3996.9,2.2095]
[1761691384509,2.73600171,3997.0,3996.9,2.21197009]
[1761691384714,2.59920171,3997.0,3996.9,2.21197009]
[1761691385111,2.73600171,3997.0,3996.9,2.21197009]
[1761691385508,2.59920171,3997.0,3996.9,2.21197009]
[1761691387018,3.2078,3997.7,3997.0,0.9734]
[1761691387216,2.02271,3997.8,3997.7,1.69018]
[1761691387415,2.61811,3997.8,3997.7,3.36455]
[1761691387611,0.45028,3997.2,3997.1,1.4189]
[1761691387815,0.45028,3997.2,3997.1,5.9139]
[1761691388119,1.34743185,3997.2,3997.1,5.9139]
[1761691388318,0.45213185,3997.2,3997.1,2.0469]
[1761691388518,2.00263185,3997.2,3997.1,5.1021]
[1761691389018,2.59803185,3997.2,3997.1,5.1021]
[1761691389323,2.59803185,3997.2,3997.1,5.1011]
[1761691389915,0.45213185,3997.2,3997.1,2.1204]
[1761691390114,0.45213185,3997.2,3997.1,5.9844]
[1761691390313,0.45213185,3997.2,3997.1,2.1204]
[1761691390618,0.45213185,3997.2,3997.1,5.9844]
[1761691392025,0.45213185,3997.2,3997.1,5.9824]
[1761691397026,0.022,3997.8,3997.7,2.1918]
[1761691397218,0.022,3997.8,3997.7,9.2566]
[1761691397620,0.9866,3997.8,3997.7,9.2576]
[1761691398123,0.98908466,3997.8,3997.7,9.2576]
[1761691398729,2.29048466,3997.8,3997.7,5.1655]
[1761691398926,2.29048466,3997.8,3997.7,1.3075]
[1761691399131,2.29048466,3997.8,3997.7,5.1645]
[1761691399317,0.98908466,3997.8,3997.7,6.0488]
[1761691399521,0.02448466,3997.8,3997.7,6.0488]
[1761691400020,0.02448466,3997.8,3997.7,9.2566]
[1761691400325,0.02448466,3997.8,3997.7,5.3996]
[1761691400326,0.98908466,3997.8,3997.7,5.3996]
[1761691400525,0.98908466,3997.8,3997.7,9.2556]
[1761691400722,1.61868466,3997.8,3997.7,9.2556]
[1761691403024,0.02448466,3997.8,3997.7,9.2556]
[1761691403226,1.61868466,3997.8,3997.7,5.3996]
[1761691403425,1.61868466,3997.8,3997.7,9.2546]
[1761691403920,2.29048466,3997.8,3997.7,4.5153]
[1761691404124,0.6718,3997.4,3996.9,3.88487009]
[1761691404323,1.9886,3997.0,3996.9,5.40207009]
[1761691404538,0.9646,3997.0,3996.9,9.25807009]
[1761691405032,1.024,3997.5,3997.4,0.6746]
[1761691405228,1.6958,3997.5,3997.4,4.5306]
[1761691405727,2.6604,3997.5,3997.4,4.5306]
[1761691405927,2.6604,3997.5,3997.4,4.5296]
[1761691406531,2.266,3997.1,3997.0,1.3075]
[1761691406834,2.266,3997.1,3997.0,5.1615]
[1761691407128,1.5942,3997.1,3997.0,6.0458]
[1761691407520,1.024,3997.5,3997.4,2.1918]
[1761691407722,1.6958,3997.5,3997.4,5.1615]
[1761691408035,2.6604,3997.5,3997.4,4.5286]
[1761691408824,2.6604,3997.5,3997.4,4.5276]
[1761691409025,2.266,3997.1,3997.0,1.3075]
[1761691409226,2.266,3997.1,3997.0,5.1605]
[1761691409630,0.9646,3997.1,3997.0,6.0448]
[1761691409831,1.6958,3997.5,3997.4,1.3075]
[1761691410027,1.6958,3997.5,3997.4,5.1605]
[1761691410430,0.98908466,3997.8,3997.7,2.1918]
[1761691410625,1.61868466,3997.8,3997.7,6.0448]
[1761691410827,1.61868466,3997.8,3997.7,9.2526]
[1761691411035,2.29048466,3997.8,3997.7,4.5276]
[1761691412238,2.29048466,3997.8,3997.7,0.6746]
[1761691412436,1.61868466,3997.8,3997.7,6.0448]
[1761691412736,0.98908466,3997.8,3997.7,6.0448]
[1761691412937,1.61868466,3997.8,3997.7,6.0448]
[1761691413135,1.61868466,3997.8,3997.7,6.93254047]
[1761691414637,2.29048466,3997.8,3997.7,1.56234047]
[1761691414839,2.266,3997.6,3997.4,0.88774047]
[1761691415038,2.6604,3997.5,3997.4,5.3996]
[1761691415337,1.5942,3997.5,3997.4,10.58795236]
[1761691415540,0.9646,3997.5,3997.4,10.58795236]
[1761691415941,0.98908466,3997.8,3997.7,2.1918]
[1761691416240,0.02448466,3997.8,3997.7,6.0428]
[1761691416832,0.02448466,3997.8,3997.7,7.38115236]
[1761691417727,0.98908466,3997.8,3997.7,7.38115236]
[1761691417933,2.29048466,3997.8,3997.7,6.49485236]
[1761691418136,2.29048466,3997.8,3997.7,5.1565]
[1761691418640,0.02448466,3997.8,3997.4,4.74209184]
[1761691418838,1.6958,3997.5,3997.4,5.41669184]
[1761691419138,2.6604,3997.5,3997.4,6.93389184]
[1761691419330,2.6604,3997.5,3997.4,6.04959184]
[1761691419733,2.6604,3997.5,3997.4,5.41669184]
[1761691420637,2.6604,3997.5,3997.4,6.01059184]
[1761691422041,2.6604,3997.5,3997.4,6.70159184]
[1761691422240,2.6604,3997.5,3997.4,5.1175]
[1761691424039,1.9886,3997.5,3997.4,5.8085]
[1761691424438,2.5602,3997.5,3997.4,5.1175]
[1761691426451,0.89936069,3999.0,3998.5,0.1046]
[1761691426746,1.4363,3998.9,3998.8,1.1769]
[1761691426950,1.4363,3998.9,3998.8,5.7989]